bitfinex/quotes_SOLUSD_20240705
["timestamp","ask_amount","ask_price","bid_price","bid_amount"]
[1720179904258,30.0,130.59,130.55,119.1491]
[1720179904545,1.5915,130.66,130.55,100.0]
[1720179904751,7.6553,130.63,130.55,107.6597]
[1720179905046,7.655,130.64,130.56,7.6591]
[1720179905436,9.2454,130.66,130.58,100.0]
[1720179905749,9.245,130.66,130.59,7.6574]
[1720179905951,1.5915,130.66,130.58,119.1446]
[1720179906131,1.5915,130.66,130.6,100.0]
[1720179906532,0.8723684,130.68,130.6,119.1418]
[1720179906747,8.5251684,130.68,130.6,126.7986]
[1720179906955,0.8723684,130.68,130.6,119.1418]
[1720179907130,0.8723684,130.68,130.63,100.0]
[1720179907534,0.8723684,130.68,130.61,100.0]
[1720179908061,8.00204665,130.67,130.58,7.6579]
[1720179908272,7.6535,130.66,130.59,7.6573]
[1720179908558,15.65504665,130.67,130.59,107.6573]
[1720179908761,8.00204665,130.67,130.62,100.0]
[1720179908987,8.00204665,130.67,130.54,391.1824]
[1720179908988,7.6617,130.52,130.46,100.0]
[1720179909184,1.5915,130.58,130.46,100.0]
[1720179909185,7.6614,130.53,130.46,100.0]
[1720179909355,19.147,130.57,130.46,100.0]
[1720179909356,19.317,130.57,130.46,100.0]
[1720179909553,19.317,130.57,130.46,107.6651]
[1720179909872,19.317,130.57,130.46,100.0]
[1720179910054,19.151,130.55,130.44,100.0]
[1720179910245,0.17,130.54,130.44,123.1]
[1720179910442,7.662,130.52,130.44,107.6662]
[1720179910645,1.5915,130.58,130.47,107.6645]
[1720179910871,1.5915,130.58,130.47,100.0]
[1720179910872,0.17,130.57,130.47,100.0]
[1720179911075,19.3177,130.57,130.47,100.0]
[1720179911275,38.465,130.57,130.44,100.0]
[1720179911447,19.151,130.55,130.42,30.7674]
[1720179911650,7.6629,130.5,130.43,100.0]
[1720179911843,7.6629,130.5,130.43,107.6667]
[1720179912065,7.6621,130.52,130.43,123.1]
[1720179912556,7.6611,130.53,130.47,100.0]
[1720179913166,0.17,130.54,130.47,100.0]
[1720179913470,0.17,130.54,130.47,107.6645]
[1720179914253,1.5915,130.58,130.49,100.0]
[1720179914466,1.5915,130.58,130.47,100.0]
[1720179914990,7.6604,130.55,130.47,100.0]
[1720179915164,7.6593,130.56,130.49,107.6634]
[1720179916459,0.17,130.55,130.49,107.6633]
[1720179916660,1.5915,130.58,130.49,107.6633]
[1720179916958,7.8289,130.57,130.49,107.6633]
[1720179917180,7.6593,130.56,130.49,107.6633]
[1720179917387,7.6599,130.55,130.49,100.0]
[1720179917867,7.6607,130.54,130.49,100.0]
[1720179918068,0.17,130.53,130.46,100.0]
[1720179918369,8.00857056,130.55,130.49,7.6633]
[1720179918701,0.17,130.54,130.48,107.6636]
[1720179918879,0.8723684,130.68,130.56,100.0]
[1720179919086,0.8723684,130.68,130.53,23.1]
[1720179919087,0.8723684,130.68,130.59,7.6574]
[1720179919294,7.6536,130.66,130.56,123.1]
[1720179919462,19.1339,130.66,130.56,100.0]
[1720179919664,7.6547,130.64,130.57,7.6585]
[1720179919966,7.654,130.65,130.58,107.6577]
[1720179920291,7.6534,130.66,130.59,7.6573]
[1720179920482,0.8723684,130.68,130.61,7.6563]
[1720179920657,8.5248684,130.68,130.61,7.6563]
[1720179920862,0.8723684,130.68,130.6,100.0]
[1720179921061,8.5246684,130.68,130.61,7.6562]
[1720179921788,7.653,130.67,130.6,107.6568]
[1720179922300,8.5246684,130.68,130.6,100.0]
[1720179922477,0.8723684,130.68,130.62,107.6554]
[1720179922666,0.8723684,130.68,130.63,7.6551]
[1720179922870,0.8723684,130.68,130.63,100.0]
[1720179923385,0.8723684,130.68,130.65,107.654]
[1720179923586,0.8723684,130.68,130.65,7.654]
[1720179923770,0.8723684,130.68,130.64,7.6544]
[1720179923970,0.8723684,130.68,130.63,100.0]
[1720179924577,0.8723684,130.68,130.58,106.3705]
[1720179924773,7.6544,130.65,130.58,106.3705]
[1720179924969,0.8723684,130.68,130.6,100.0]
[1720179925198,7.8229,130.67,130.6,107.6568]
[1720179925399,7.823,130.67,130.6,100.0]
[1720179925608,7.823,130.67,130.6,107.6567]
[1720179926169,0.17,130.67,130.6,100.0]
[1720179926369,7.6632,130.5,130.46,100.0]
[1720179926598,19.1536,130.53,130.43,6.1124]
[1720179926775,0.17,130.52,130.43,6.1124]
[1720179926974,7.6646,130.47,130.43,6.1124]
[1720179927191,0.17,130.52,130.43,6.1124]
[1720179927590,7.6641,130.48,130.41,7.6679]
[1720179927793,0.17,130.47,130.4,7.6686]
[1720179927973,0.17,130.47,130.41,7.6679]
[1720179928173,7.8346,130.47,130.38,123.1]
[1720179928370,0.17,130.47,130.39,7.6691]
[1720179928600,0.17,130.47,130.37,106.431]
[1720179928799,0.17,130.48,130.38,100.0]
[1720179929097,0.17,130.48,130.4,7.6681]
[1720179929400,7.6625,130.51,130.44,7.6662]
[1720179929710,0.17,130.5,130.44,7.666]
[1720179929994,15.0,130.58,130.44,7.666]
[1720179929995,73.3313,130.61,130.48,7.6639]
[1720179930201,54.19,130.61,130.43,123.1]
[1720179930394,19.1449,130.59,130.43,123.1]
[1720179930587,7.6605,130.54,130.46,7.6647]
[1720179930797,8.00963774,130.6,130.48,123.1]
[1720179930987,8.00963774,130.6,130.42,15.0]
[1720179930988,7.6581,130.58,130.5,100.0]
[1720179931311,8.00963774,130.6,130.52,7.6614]
[1720179931472,7.6552,130.63,130.56,7.6591]
[1720179931676,15.66083697,130.63,130.55,7.6597]
[1720179931883,43.1032684,130.68,130.55,7.6597]
[1720179931884,0.8723684,130.68,130.62,7.6557]
[1720179932108,0.8723684,130.68,130.62,7.6556]
[1720179932308,0.8723684,130.68,130.63,7.6552]
[1720179932488,0.8723684,130.68,130.59,23.1]
[1720179932685,0.8723684,130.68,130.6,100.0]
[1720179932882,0.8723684,130.68,130.62,7.6553]
[1720179933282,0.8723684,130.68,130.6,123.1]
[1720179933488,0.8723684,130.68,130.61,7.6563]
[1720179933685,0.8723684,130.68,130.57,23.1]
[1720179933889,0.8723684,130.68,130.58,43.1]
[1720179934104,0.8723684,130.68,130.56,100.0]
[1720179934415,7.654,130.65,130.56,107.6587]
[1720179934703,7.6546,130.64,130.56,100.0]
[1720179934917,0.8723684,130.68,130.53,100.0]
[1720179935206,43.9723684,130.68,130.53,100.0]
[1720179935426,0.17,130.67,130.53,100.0]
[1720179935784,7.6557,130.63,130.55,7.6598]
[1720179935978,0.17,130.62,130.53,100.0]
[1720179936277,7.6551,130.64,130.55,7.6597]
[1720179936489,7.6565,130.61,130.53,107.6608]
[1720179936683,0.17,130.63,130.53,107.6608]
[1720179936684,0.17,130.6,130.53,100.0]
[1720179936890,0.17,130.63,130.53,100.0]
[1720179937305,23.1,130.59,130.42,106.5915]
[1720179937514,23.1,130.59,130.44,7.6662]
[1720179937515,0.17,130.58,130.44,7.6662]
[1720179937684,7.6604,130.54,130.53,3.3334]
[1720179937890,0.17,130.54,130.44,7.6662]
[1720179938189,7.8316,130.53,130.45,7.6655]
[1720179938525,7.8316,130.53,130.44,7.6662]
[1720179938526,7.6618,130.52,130.44,7.6662]
[1720179938813,0.17,130.51,130.45,7.6655]
[1720179938992,7.6604,130.55,130.44,100.0]
[1720179939191,7.6599,130.55,130.44,123.1]
[1720179939393,7.8307,130.54,130.44,100.0]
[1720179939599,7.6612,130.53,130.44,100.0]
[1720179939817,0.17,130.52,130.46,7.665]
[1720179940004,0.17,130.52,130.44,100.0]
[1720179940205,0.17,130.52,130.46,7.6651]
[1720179940414,7.8316,130.52,130.42,123.1]
[1720179940616,0.17,130.52,130.43,20.0]
[1720179940918,0.8723684,130.68,130.61,100.0]
[1720179941090,0.8723684,130.68,130.67,61.8428]
[1720179941299,6.4721,130.8,130.67,208.38]
[1720179941512,11.2252,130.82,130.75,54.19]
[1720179941720,18.8693,130.82,130.72,19.1246]
[1720179942021,11.2252,130.82,130.76,54.19]
[1720179942316,11.2252,130.82,130.78,19.116]
[1720179942317,5.0,130.82,130.78,19.116]
[1720179942620,0.3723684,130.81,130.79,54.19]
[1720179943321,5.0,130.82,130.8,7.6452]
[1720179943617,5.0,130.82,130.79,54.19]
[1720179943618,5.0,130.82,130.76,7.647]
[1720179943800,5.0,130.82,130.79,54.19]
[1720179944117,5.0,130.82,130.8,7.6449]
[1720179944322,5.0,130.82,130.81,7.6446]
[1720179944619,5.0,130.82,130.81,26.7562]
[1720179945401,5.0,130.82,130.81,125.9462]
[1720179945600,5.0,130.82,130.79,7.6456]
[1720179945826,5.0,130.82,130.81,7.6446]
[1720179946610,0.1,130.89,130.85,26.7465]
[1720179946828,0.1,130.89,130.86,7.6416]
[1720179947123,0.1,130.89,130.85,19.1047]
[1720179947837,0.1,130.89,130.88,26.7419]
[1720179948400,0.8723684,130.94,130.88,108.38]
[1720179948628,0.8723684,130.94,130.93,26.7317]
[1720179948927,0.1,130.99,130.84,100.0]
[1720179949096,0.1,130.99,130.87,19.1015]
[1720179949297,7.6439,130.83,130.74,100.0]
[1720179949498,7.6439,130.83,130.66,3.061357]
[1720179949499,100.0,130.91,130.77,54.19]
[1720179949809,100.0,130.91,130.69,100.0]
[1720179949810,100.0,130.89,130.69,100.0]
[1720179950010,100.0,130.89,130.72,54.19]
[1720179950011,48.7084,130.85,130.72,54.19]
[1720179950201,6.5013,130.85,130.72,54.19]
[1720179950403,6.5013,130.85,130.77,19.1165]
[1720179950605,7.8133,130.84,130.75,7.6481]
[1720179950812,0.17,130.84,130.77,7.6469]
[1720179951022,7.6459,130.79,130.71,7.6504]
[1720179951221,6.5013,130.85,130.79,7.6457]
[1720179951413,6.3183,130.91,130.78,7.6461]
[1720179951612,6.3183,130.91,130.8,7.6449]
[1720179951926,7.6406,130.88,130.8,26.7576]
[1720179952108,6.3183,130.91,130.77,54.19]
[1720179952109,6.3183,130.91,130.77,73.3075]
[1720179952307,7.6423,130.86,130.77,73.3075]
[1720179952499,7.6419,130.86,130.78,7.6462]
[1720179952702,7.6412,130.87,130.79,7.6458]
[1720179953016,7.6428,130.85,130.76,7.6471]
[1720179953218,7.6428,130.85,130.77,7.6469]
[1720179953417,7.6435,130.83,130.75,7.648]
[1720179953641,7.644,130.83,130.75,7.6481]
[1720179953825,0.17,130.82,130.75,7.6481]
[1720179954005,0.17,130.82,130.76,7.6475]
[1720179954200,0.17,130.82,130.74,119.1216]
[1720179954609,0.17,130.82,130.74,100.0]
[1720179954910,7.6413,130.87,130.79,7.6458]
[1720179955112,6.3183,130.91,130.81,19.1116]
[1720179955409,7.6396,130.9,130.81,19.1116]
[1720179955607,6.3183,130.91,130.83,19.1076]
[1720179955800,6.3183,130.91,130.84,7.6425]
[1720179956002,7.6376,130.93,130.85,7.6421]
[1720179956226,34.803,130.98,130.82,100.0]
[1720179956227,15.0,130.96,130.82,100.0]
[1720179956408,7.6372,130.94,130.86,19.1043]
[1720179956610,15.0,130.96,130.83,45.0]
[1720179956918,15.0,130.96,130.8,54.19]
[1720179957117,7.6382,130.93,130.85,26.7467]
[1720179957423,15.0,130.96,130.82,19.11]
[1720179957610,7.6381,130.93,130.84,19.106]
[1720179957811,15.0,130.96,130.84,19.106]
[1720179958033,7.6405,130.89,130.81,26.7554]
[1720179958249,15.0,130.96,130.83,119.1074]
[1720179958536,15.0,130.96,130.87,7.6411]
[1720179958741,15.0,130.96,130.86,19.1041]
[1720179958909,15.0,130.96,130.84,54.19]
[1720179959341,34.0911,130.96,130.84,73.2962]
[1720179959638,34.0911,130.96,130.85,52.6422]
[1720179959932,7.6364,130.96,130.87,19.1026]
[1720179960137,7.6353,130.97,130.89,7.6394]
[1720179960434,0.1,130.99,130.88,199.19]
[1720179960615,7.6362,130.96,130.89,19.0998]
[1720179960809,0.1,130.99,130.9,45.0]
[1720179961034,0.1,130.99,130.93,7.6376]
[1720179961239,0.1,130.99,130.92,7.638]
[1720179961448,0.1,130.99,130.88,54.19]
[1720179961757,0.1,130.99,130.93,7.6371]
[1720179961933,7.6377,130.93,130.85,7.6419]
[1720179962122,23.1,130.98,130.86,19.1034]
[1720179962324,23.1,130.98,130.82,54.19]
[1720179962629,23.1,130.98,130.83,19.1083]
[1720179962630,7.6377,130.93,130.83,19.1083]
[1720179962826,7.6372,130.94,130.86,7.6416]
[1720179963034,23.1,130.98,130.88,7.6405]
[1720179963226,0.17,130.97,130.88,7.6403]
[1720179963423,0.17,130.97,130.86,19.104]
[1720179963644,0.17,130.97,130.83,119.1086]
[1720179963831,7.6376,130.94,130.83,119.1086]
[1720179964032,0.17,130.93,130.85,19.1048]
[1720179964232,42.1869,130.98,130.87,7.6405]
[1720179964436,42.1869,130.98,130.86,7.6416]
[1720179964437,0.17,130.94,130.86,7.6416]
[1720179964944,0.17,130.94,130.82,154.19]
[1720179965146,7.6386,130.92,130.85,26.747]
[1720179965326,0.17,130.91,130.85,26.7466]
[1720179965840,0.17,130.91,130.84,19.1059]
[1720179966028,0.17,130.91,130.82,54.19]
[1720179966029,0.17,130.91,130.83,100.0]
[1720179966351,0.17,130.91,130.86,19.1034]
[1720179966529,0.17,130.92,130.86,19.1034]
[1720179966726,0.1,130.99,130.85,123.1]
[1720179966931,7.7342,130.99,130.91,7.6387]
[1720179967152,0.1,130.99,130.82,100.0]
[1720179967450,7.6373,130.94,130.87,7.641]
[1720179967624,7.6366,130.95,130.87,26.7435]
[1720179967822,7.6366,130.95,130.87,19.1025]
[1720179968027,7.6381,130.93,130.85,54.19]
[1720179968221,42.1894,130.97,130.86,7.6416]
[1720179968438,7.6376,130.94,130.86,7.6415]
[1720179968637,7.8078,130.93,130.86,7.6413]
[1720179968850,0.17,130.92,130.84,19.1065]
[1720179969054,7.6394,130.9,130.84,19.1065]
[1720179969237,19.092,130.95,130.84,19.1065]
[1720179969441,0.17,130.91,130.84,19.1065]
[1720179969662,0.17,130.91,130.85,7.6422]
[1720179969833,23.1,130.96,130.78,100.0]
[1720179969834,0.17,130.92,130.86,19.1031]
[1720179970037,0.17,130.92,130.87,7.6411]
[1720179970250,0.17,130.93,130.87,7.6411]
[1720179970454,23.2,130.99,130.89,7.6398]
[1720179970654,23.2,130.99,130.86,19.1031]
[1720179970960,19.0872,130.98,130.83,154.19]
[1720179971151,7.638,130.93,130.86,19.1032]
[1720179971357,7.638,130.93,130.86,26.7446]
[1720179971540,7.6371,130.94,130.86,19.1032]
[1720179971741,7.6384,130.92,130.83,73.298]
[1720179971951,23.1,130.88,130.76,6.1915]
[1720179972170,6.1494,130.91,130.76,7.6471]
[1720179972171,7.643,130.84,130.76,7.6471]
[1720179972333,0.17,130.83,130.75,19.1192]
[1720179972655,0.17,130.83,130.77,26.7629]
[1720179973047,0.17,130.83,130.81,19.1108]
[1720179973355,0.17,130.83,130.76,7.6474]
[1720179973560,0.17,130.83,130.75,26.7681]
[1720179973861,7.8136,130.83,130.76,7.6474]
[1720179974158,0.17,130.83,130.77,7.6468]
[1720179974372,0.17,130.83,130.78,7.6461]
[1720179974730,0.17,130.83,130.77,26.7635]
[1720179974966,7.6441,130.82,130.75,7.6476]
[1720179975259,53.1922,130.92,130.73,77.29]
[1720179975260,7.6402,130.89,130.77,177.29]
[1720179975432,42.1949,130.93,130.81,19.111]
[1720179976243,7.64,130.89,130.82,7.644]
[1720179976537,42.1976,130.91,130.78,19.1151]
[1720179976850,7.6381,130.93,130.86,7.6416]
[1720179977034,7.6389,130.91,130.84,19.1061]
[1720179977233,16.5214,130.94,130.84,19.1061]
[1720179977436,7.6395,130.9,130.83,7.6433]
[1720179977751,19.0947,130.93,130.81,73.3007]
[1720179977935,7.6405,130.89,130.81,80.9449]
[1720179978356,42.1947,130.93,130.79,7.6458]
[1720179978357,7.6422,130.86,130.79,7.6458]
[1720179978660,0.17,130.85,130.8,7.6451]
[1720179979165,0.17,130.85,130.81,7.6446]
[1720179979460,0.17,130.85,130.8,7.645]
[1720179979635,0.17,130.85,130.76,54.19]
[1720179979835,19.2767,130.85,130.73,26.7716]
[1720179980034,7.6448,130.81,130.74,7.6485]
[1720179980234,0.17,130.8,130.73,19.1228]
[1720179980446,7.8153,130.8,130.73,26.7716]
[1720179980660,0.17,130.8,130.74,7.6486]
[1720179980846,0.17,130.8,130.73,19.1228]
[1720179981047,0.17,130.8,130.69,160.7229]
[1720179981048,0.17,130.8,130.69,54.19]
[1720179981266,0.17,130.8,130.63,6.5895]
[1720179981439,38.7979,130.82,130.62,70.5058684]
[1720179981440,23.1,130.77,130.62,70.5058684]
[1720179981765,160.17,130.81,130.63,7.6551]
[1720179981766,7.6512,130.7,130.63,7.6551]
[1720179981948,19.1242,130.73,130.62,20.0103684]
[1720179982160,7.6505,130.71,130.64,7.6545]
[1720179982456,0.17,130.7,130.65,7.654]
[1720179982661,0.17,130.7,130.66,7.6534]
[1720179982836,57.3472,130.79,130.67,7.6528]
[1720179983043,57.3472,130.79,130.66,26.786]
[1720179983044,7.6492,130.74,130.66,26.786]
[1720179983243,0.17,130.73,130.67,7.6528]
[1720179983468,0.17,130.73,130.68,19.1296]
[1720179983648,0.17,130.73,130.68,26.7814]
[1720179983855,0.17,130.74,130.69,7.6511]
[1720179984041,0.17,130.74,130.67,7.6525]
[1720179984248,19.1152,130.79,130.63,100.0]
[1720179984444,7.6476,130.76,130.69,7.6516]
[1720179984654,7.6476,130.76,130.65,100.0]
[1720179984655,53.921,130.82,130.7,7.6506]
[1720179984864,7.6471,130.77,130.7,19.1277]
[1720179985175,7.6469,130.78,130.7,19.1277]
[1720179985372,23.1,130.8,130.7,19.1277]
[1720179985883,25.6052,130.86,130.72,19.1238]
[1720179986093,25.6052,130.86,130.7,54.19]
[1720179986374,7.6439,130.83,130.74,19.1209]
[1720179986546,25.6052,130.86,130.7,54.19]
[1720179986547,6.5005,130.86,130.76,19.118]
[1720179986750,7.6429,130.84,130.77,7.6469]
[1720179987058,7.6429,130.84,130.77,7.6468]
[1720179987362,19.0993,130.9,130.79,7.6454]
[1720179987565,6.1038,130.92,130.78,54.19]
[1720179987779,6.1038,130.92,130.8,19.1126]
[1720179987986,6.1038,130.92,130.82,19.1095]
[1720179988273,7.6396,130.9,130.83,7.6432]
[1720179988657,6.1038,130.92,130.8,7.6451]
[1720179988853,6.1038,130.92,130.78,123.1]
[1720179989047,6.1038,130.92,130.81,100.0]
[1720179989247,19.0886,130.97,130.81,77.29]
[1720179989472,7.6366,130.95,130.87,7.6409]
[1720179989769,7.6366,130.95,130.88,7.6403]
[1720179990271,29.169,130.98,130.87,19.1022]
[1720179990570,42.1886,130.97,130.87,19.1022]
[1720179991054,23.1,130.97,130.87,19.1022]
[1720179991253,67.3428,130.98,130.84,19.1066]
[1720179991442,7.6379,130.93,130.85,7.6419]
[1720179991646,7.6379,130.93,130.86,7.6417]
[1720179991872,19.0904,130.96,130.84,19.1066]
[1720179992173,23.1,130.92,130.76,7.6473]
[1720179992472,7.6446,130.82,130.75,26.7677]
[1720179992673,42.2065,130.85,130.73,100.0]
[1720179992857,7.6455,130.8,130.73,107.6489]
[1720179993062,7.6468,130.78,130.71,7.6503]
[1720179993260,7.6476,130.76,130.69,26.7798]
[1720179993449,0.17,130.77,130.69,19.1282]
[1720179993656,0.17,130.77,130.66,183.702]
[1720179994189,0.17,130.77,130.66,83.702]
[1720179994350,0.17,130.77,130.71,7.6503]
[1720179994554,0.17,130.77,130.7,19.1266]
[1720179994555,7.817,130.77,130.7,26.7775]
[1720179994776,7.817,130.77,130.7,19.1266]
[1720179994965,7.6476,130.76,130.7,19.1266]
[1720179995178,0.17,130.75,130.7,19.1266]
[1720179995354,0.17,130.75,130.67,19.1319]
[1720179995684,7.6494,130.73,130.64,19.1357]
[1720179995878,23.1,130.77,130.67,7.6524]
[1720179995879,0.17,130.72,130.67,7.6524]
[1720179996253,23.1,130.79,130.61,200.0]
[1720179996454,23.1,130.79,130.68,19.1295]
[1720179996775,0.17,130.78,130.68,19.1295]
[1720179996950,7.6482,130.75,130.68,19.1295]
[1720179997150,0.17,130.74,130.68,19.1295]
[1720179997372,0.17,130.74,130.7,7.6511]
[1720179997680,0.17,130.74,130.69,7.6515]
[1720179998168,0.17,130.74,130.71,7.6504]
[1720179998378,0.17,130.74,130.7,7.6509]
[1720179998875,35.6876,130.81,130.7,19.1269]
[1720179998876,23.1,130.8,130.7,19.1269]
[1720179999085,7.6462,130.79,130.72,7.6497]
[1720179999274,23.0,130.82,130.7,19.1269]
[1720179999481,42.1109,130.82,130.7,26.7775]
[1720179999666,42.1109,130.82,130.7,19.1269]
[1720179999877,7.6453,130.8,130.73,7.6489]
[1720180000189,7.6451,130.81,130.74,7.6486]
[1720180000397,7.6451,130.81,130.74,7.6487]
[1720180001068,7.6448,130.81,130.74,7.6487]
[1720180001287,7.6457,130.8,130.73,7.6489]
[1720180001586,7.6459,130.79,130.72,26.7735]
[1720180001791,23.0,130.8,130.69,54.19]
[1720180001969,7.6472,130.77,130.7,7.6507]
[1720180002292,38.2083,130.87,130.71,100.0]
[1720180002468,38.2083,130.87,130.75,7.6478]
[1720180002469,7.6444,130.82,130.75,7.6478]
[1720180002865,19.1046,130.86,130.79,7.6454]
[1720180002866,7.6423,130.86,130.79,7.6454]
[1720180003179,7.6418,130.86,130.77,19.1166]
[1720180003384,7.6419,130.86,130.77,19.1166]
[1720180003563,21.5594,130.88,130.8,7.6449]
[1720180003763,7.6418,130.86,130.79,26.7594]
[1720180004000,7.6418,130.86,130.8,7.6452]
[1720180004207,7.6402,130.89,130.82,7.6437]
[1720180004370,7.6396,130.9,130.83,7.6434]
[1720180005390,59.9995,130.94,130.83,7.643]
[1720180005391,21.8135,130.94,130.83,7.643]
[1720180005588,21.8135,130.94,130.86,7.6417]
[1720180005794,6.4244,130.94,130.86,19.1036]
[1720180005968,23.0,130.98,130.86,19.1036]
[1720180006173,7.6376,130.93,130.86,26.7452]
[1720180006475,42.088,130.98,130.86,19.1036]
[1720180006665,7.6363,130.96,130.88,7.6403]
[1720180006865,7.6363,130.96,130.86,19.1036]
[1720180006866,7.6363,130.96,130.89,7.6399]
[1720180007292,7.6348,130.98,130.9,19.0977]
[1720180007471,23.1,130.99,130.9,19.0977]
[1720180007673,0.1,130.99,130.9,19.0977]
[1720180007897,7.6353,130.97,130.9,26.7367]
[1720180008089,7.6352,130.98,130.91,7.6387]
[1720180008390,7.6355,130.97,130.9,26.7369]
[1720180008770,23.0,130.91,130.79,25.0747414]
[1720180008968,38.1847,130.95,130.74,15.0592]
[1720180008969,23.0,130.89,130.74,15.0592]
[1720180009211,6.0654,130.9,130.72,6.221]
[1720180009212,19.1029,130.87,130.76,7.6471]
[1720180009385,7.6439,130.83,130.76,7.6471]
[1720180009888,23.0,130.84,130.72,25.3449]
[1720180010079,23.0,130.84,130.72,19.1239]
[1720180010080,7.6452,130.8,130.72,19.1239]
[1720180010287,0.17,130.79,130.72,19.1239]
[1720180010798,0.17,130.8,130.74,19.1213]
[1720180010983,0.17,130.81,130.75,7.6481]
[1720180011901,7.8147,130.81,130.74,26.7698]
[1720180012385,0.17,130.81,130.75,7.648]
[1720180012576,0.17,130.81,130.74,19.1213]
[1720180012577,7.8149,130.81,130.74,19.1213]
[1720180012775,7.8149,130.81,130.74,26.77]
[1720180013280,23.0,130.84,130.7,54.19]
[1720180013481,7.6454,130.8,130.73,7.649]
[1720180013782,19.1043,130.86,130.73,19.1226]
[1720180014008,7.6442,130.82,130.73,19.1226]
[1720180014292,19.1043,130.86,130.68,115.0592]
[1720180014293,7.6436,130.83,130.75,19.1197]
[1720180014496,7.6442,130.82,130.75,26.7673]
[1720180014670,0.17,130.81,130.75,26.7673]
[1720180014880,0.17,130.81,130.76,7.6475]
[1720180015099,0.17,130.81,130.72,26.7739]
[1720180015270,0.17,130.81,130.73,7.6493]
[1720180015271,7.6459,130.79,130.73,7.6493]
[1720180015473,7.6453,130.8,130.73,7.6493]
[1720180015677,0.17,130.79,130.73,7.6493]
[1720180016167,0.17,130.79,130.69,19.1282]
[1720180016392,0.17,130.79,130.7,7.6507]
[1720180016598,7.6482,130.75,130.69,19.1282]
[1720180016979,0.17,130.76,130.69,19.1282]
[1720180017398,19.1095,130.83,130.71,19.1258]
[1720180017569,0.17,130.82,130.67,6.6241]
[1720180017770,23.0,130.8,130.67,6.6241]
[1720180018015,0.17,130.79,130.67,6.6241]
[1720180018188,7.647,130.77,130.7,7.6507]
[1720180018395,0.17,130.76,130.7,7.651]
[1720180019193,19.112,130.81,130.7,19.127]
[1720180019385,7.6462,130.79,130.72,7.6497]
[1720180019603,0.17,130.78,130.7,19.127]
[1720180019781,7.6473,130.77,130.7,26.7777]
[1720180020099,0.17,130.76,130.7,26.7777]
[1720180020306,7.8176,130.76,130.7,19.127]
[1720180020597,7.8176,130.76,130.64,54.19]
[1720180020598,0.17,130.76,130.64,54.19]
[1720180020781,0.17,130.77,130.62,16.7852684]
[1720180021108,23.0,130.76,130.66,7.6534]
[1720180021274,7.6495,130.73,130.66,7.6534]
[1720180021475,0.17,130.72,130.62,35.9238684]
[1720180021706,7.6513,130.7,130.62,20.0109684]
[1720180021874,0.17,130.69,130.65,7.6539]
[1720180022071,0.17,130.75,130.62,0.8723684]
[1720180022306,7.6491,130.74,130.68,7.6522]
[1720180022609,7.6486,130.75,130.68,26.7826]